[Event "2026 European Womens Championship"]
[Site "Batumi, GE"]
[Date "2026.05.27"]
[Round "3"]
[White "Tsiganova, Monika"]
[Black "Rapport, Jovana"]
[Result "1/2-1/2"]
[Board "50"]
[TimeControl "5400+30"]
[WhiteFideId "4500199"]
[BlackFideId "937266"]
[WhiteElo "2039"]
[BlackElo "2235"]
[WhiteTitle "WIM"]
[BlackTitle "WGM"]
[WhiteClock "0:29:21"]
[BlackClock "0:50:47"]
[Variant "Standard"]

1. d4 {[%clk 1:30:50]}  Nf6 {[%clk 1:30:46]} 2. c4 {[%clk 1:30:51]}  g6 {[%clk 1:31:06]} 3. Nc3 {[%clk 1:31:03]}  Bg7 {[%clk 1:31:30]}
4. e4 {[%clk 1:31:24]}  d6 {[%clk 1:31:54]} 5. h4 {[%clk 1:31:10]}  Na6 {[%clk 1:30:21]} 6. Be2 {[%clk 1:31:01]}  h5 {[%clk 1:30:46]}
7. Nf3 {[%clk 1:30:52]}  c6 {[%clk 1:29:56]} 8. Ng5 {[%clk 1:28:51]}  Nc7 {[%clk 1:29:52]} 9. f3 {[%clk 1:27:37]}  Bd7 {[%clk 1:25:08]}
10. Be3 {[%clk 1:18:41]}  O-O {[%clk 1:25:00]} 11. Qd2 {[%clk 1:07:39]}  b5 {[%clk 1:24:40]} 12. cxb5 {[%clk 1:05:51]}  cxb5 {[%clk 1:23:49]}
13. Nd1 {[%clk 1:05:21]}  a5 {[%clk 1:19:02]} 14. Nf2 {[%clk 1:05:05]}  b4 {[%clk 1:18:47]} 15. O-O {[%clk 1:00:19]}  Bb5 {[%clk 1:13:36]}
16. Rac1 {[%clk 0:58:48]}  Bxe2 {[%clk 1:13:35]} 17. Qxe2 {[%clk 0:59:07]}  Qd7 {[%clk 1:14:00]} 18. d5 {[%clk 0:53:12]}  Qb5 {[%clk 1:04:11]}
19. Qd2 {[%clk 0:47:00]}  Nce8 {[%clk 1:04:16]} 20. Nd3 {[%clk 0:44:30]}  Nd7 {[%clk 1:03:58]} 21. Nf4 {[%clk 0:41:59]}  Ne5 {[%clk 0:59:04]}
22. b3 {[%clk 0:38:52]}  Qb7 {[%clk 0:50:09]} 23. Rc2 {[%clk 0:34:57]}  Nf6 {[%clk 0:50:10]} 24. Rfc1 {[%clk 0:31:37]}  Rfc8 {[%clk 0:50:31]}
25. Ne2 {[%clk 0:30:29]}  Nfd7 {[%clk 0:49:45]} 26. Kh1 {[%clk 0:24:00]}  Rxc2 {[%clk 0:47:59]} 27. Rxc2 {[%clk 0:21:42]}  Bf6 {[%clk 0:47:13]}
28. Bd4 {[%clk 0:17:49]}  Rc8 {[%clk 0:32:16]} 29. Bf2 {[%clk 0:04:46]}  Qa6 {[%clk 0:44:16]} 30. Rxc8+ {[%clk 0:04:39]}  Qxc8 {[%clk 0:44:44]}
31. Nh3 {[%clk 0:04:38]}  Qa6 {[%clk 0:39:31]} 32. Nhf4 {[%clk 0:04:44]}  Nc5 {[%clk 0:40:00]} 33. Kh2 {[%clk 0:01:18]}  Kg7 {[%clk 0:36:55]}
34. Kh3 {[%clk 0:01:30]}  Qb5 {[%clk 0:32:44]} 35. Ng3 {[%clk 0:01:02]}  Kh7 {[%clk 0:31:16]} 36. Bd4 {[%clk 0:00:32]}  Qd7+ {[%clk 0:23:43]}
37. Kh2 {[%clk 0:01:01]}  Bxh4 {[%clk 0:24:07]} 38. Bxe5 {[%clk 0:01:10]}  Bxg3+ {[%clk 0:23:06]} 39. Kxg3 {[%clk 0:01:37]}  dxe5 {[%clk 0:23:34]}
40. Nd3 {[%clk 0:01:00]}  Nxd3 {[%clk 0:19:30]} 41. Qxd3 {[%clk 0:01:27]}  a4 {[%clk 0:19:53]} 42. bxa4 {[%clk 0:01:24]}  Qxa4 {[%clk 0:20:20]}
43. Qc4 {[%clk 0:30:00]}  Qa5 {[%clk 0:50:38]} 44. d6 {[%clk 0:29:21]}  exd6 {[%clk 0:50:47]} 1/2-1/2

[Event "2026 European Womens Championship"]
[Site "Batumi, GE"]
[Date "2026.05.27"]
[Round "3"]
[White "Tsirulnik, Maritsa"]
[Black "Tsetskhladze, Mariam"]
[Result "1/2-1/2"]
[Board "51"]
[TimeControl "5400+30"]
[WhiteFideId "14118688"]
[BlackFideId "13623834"]
[WhiteElo "2028"]
[BlackElo "2234"]
[WhiteTitle "WFM"]
[BlackTitle "WFM"]
[WhiteClock "0:14:20"]
[BlackClock "0:05:17"]
[Variant "Standard"]

1. d4 {[%clk 1:30:56]}  d5 {[%clk 1:27:45]} 2. c4 {[%clk 1:31:15]}  dxc4 {[%clk 1:27:07]} 3. Nf3 {[%clk 1:31:39]}  Nf6 {[%clk 1:27:31]}
4. e3 {[%clk 1:32:04]}  e6 {[%clk 1:27:48]} 5. Bxc4 {[%clk 1:32:26]}  c5 {[%clk 1:28:01]} 6. O-O {[%clk 1:32:44]}  Nc6 {[%clk 1:28:22]}
7. Qe2 {[%clk 1:24:57]}  a6 {[%clk 1:23:32]} 8. Rd1 {[%clk 1:24:23]}  b5 {[%clk 1:22:22]} 9. Bb3 {[%clk 1:24:28]}  c4 {[%clk 1:18:48]}
10. Bc2 {[%clk 1:24:54]}  Nb4 {[%clk 1:16:00]} 11. Nc3 {[%clk 1:24:30]}  Nxc2 {[%clk 1:14:01]} 12. Qxc2 {[%clk 1:24:55]}  Be7 {[%clk 1:11:00]}
13. e4 {[%clk 0:42:45]}  O-O {[%clk 1:00:24]} 14. d5 {[%clk 0:42:31]}  Qc7 {[%clk 0:52:33]} 15. d6 {[%clk 0:39:17]}  Bxd6 {[%clk 0:52:14]}
16. Rxd6 {[%clk 0:38:50]}  Qxd6 {[%clk 0:52:39]} 17. e5 {[%clk 0:39:10]}  Qd3 {[%clk 0:42:45]} 18. Qxd3 {[%clk 0:39:34]}  cxd3 {[%clk 0:43:12]}
19. exf6 {[%clk 0:39:59]}  Bb7 {[%clk 0:41:12]} 20. Bg5 {[%clk 0:31:32]}  h6 {[%clk 0:37:29]} 21. Be3 {[%clk 0:28:18]}  gxf6 {[%clk 0:32:40]}
22. Ne1 {[%clk 0:26:51]}  Rfd8 {[%clk 0:30:34]} 23. Rd1 {[%clk 0:27:15]}  Rd7 {[%clk 0:26:48]} 24. Rxd3 {[%clk 0:22:29]}  Rxd3 {[%clk 0:27:12]}
25. Nxd3 {[%clk 0:22:57]}  Rd8 {[%clk 0:27:33]} 26. Ne1 {[%clk 0:23:16]}  b4 {[%clk 0:27:32]} 27. Ne2 {[%clk 0:23:35]}  Rd1 {[%clk 0:27:46]}
28. Kf1 {[%clk 0:24:02]}  a5 {[%clk 0:17:31]} 29. f4 {[%clk 0:18:32]}  Ba6 {[%clk 0:17:41]} 30. Kf2 {[%clk 0:17:54]}  Rb1 {[%clk 0:17:24]}
31. Bd4 {[%clk 0:17:02]}  a4 {[%clk 0:09:49]} 32. Nc2 {[%clk 0:04:01]}  Rd1 {[%clk 0:08:09]} 33. Be3 {[%clk 0:04:04]}  b3 {[%clk 0:04:55]}
34. axb3 {[%clk 0:04:28]}  axb3 {[%clk 0:05:07]} 35. Ncd4 {[%clk 0:02:27]}  Rb1 {[%clk 0:04:45]} 36. Nxb3 {[%clk 0:01:26]}  Rxb2 {[%clk 0:05:12]}
37. Nbc1 {[%clk 0:01:51]}  Kg7 {[%clk 0:04:26]} 38. Bd4 {[%clk 0:01:51]}  Rb1 {[%clk 0:04:03]} 39. Bc3 {[%clk 0:01:42]}  Kg6 {[%clk 0:03:20]}
40. Ke3 {[%clk 0:01:28]}  f5 {[%clk 0:01:17]} 41. Nd3 {[%clk 0:00:31]}  f6 {[%clk 0:01:27]} 42. Nec1 {[%clk 0:22:11]}  Bb7 {[%clk 0:21:13]}
43. g3 {[%clk 0:22:03]}  Be4 {[%clk 0:20:49]} 44. Bd2 {[%clk 0:20:04]}  Kf7 {[%clk 0:20:15]} 45. Nc5 {[%clk 0:17:19]}  Bd5 {[%clk 0:20:29]}
46. Kd4 {[%clk 0:17:05]}  Ke7 {[%clk 0:17:43]} 47. N5d3 {[%clk 0:16:44]}  Kd7 {[%clk 0:14:09]} 48. Nc5+ {[%clk 0:16:37]}  Kd6 {[%clk 0:11:57]}
49. N5d3 {[%clk 0:16:52]}  Kd7 {[%clk 0:08:34]} 50. Kc3 {[%clk 0:16:19]}  Rb5 {[%clk 0:06:40]} 51. Be3 {[%clk 0:16:25]}  Ke7 {[%clk 0:05:41]}
52. Bd4 {[%clk 0:16:26]}  Be4 {[%clk 0:05:21]} 53. Kd2 {[%clk 0:14:30]}  Rb1 {[%clk 0:05:12]} 54. Nf2 {[%clk 0:13:16]}  Bc6 {[%clk 0:04:29]}
55. Nfd3 {[%clk 0:13:28]}  Be4 {[%clk 0:04:52]} 56. Nf2 {[%clk 0:13:53]}  Bc6 {[%clk 0:05:17]} 57. Nfd3 {[%clk 0:14:20]} 1/2-1/2

[Event "2026 European Womens Championship"]
[Site "Batumi, GE"]
[Date "2026.05.27"]
[Round "3"]
[White "Hariharan, Shambavi"]
[Black "Kirtadze, Anastasia"]
[Result "0-1"]
[Board "52"]
[TimeControl "5400+30"]
[WhiteFideId "488160"]
[BlackFideId "13622714"]
[WhiteElo "2008"]
[BlackElo "2233"]
[WhiteTitle "WFM"]
[BlackTitle "WIM"]
[WhiteClock "0:29:16"]
[BlackClock "0:29:08"]
[Variant "Standard"]

1. d4 {[%clk 1:30:57]}  d5 {[%clk 1:30:46]} 2. c4 {[%clk 1:31:21]}  e6 {[%clk 1:31:12]} 3. Nc3 {[%clk 1:31:46]}  Nf6 {[%clk 1:31:38]}
4. cxd5 {[%clk 1:32:08]}  exd5 {[%clk 1:32:02]} 5. Bg5 {[%clk 1:32:31]}  Bb4 {[%clk 1:32:03]} 6. a3 {[%clk 1:26:05]}  Bxc3+ {[%clk 1:28:08]}
7. bxc3 {[%clk 1:26:27]}  h6 {[%clk 1:25:02]} 8. Bh4 {[%clk 1:19:33]}  g5 {[%clk 1:21:38]} 9. Bg3 {[%clk 1:19:29]}  Ne4 {[%clk 1:20:59]}
10. e3 {[%clk 1:14:32]}  h5 {[%clk 1:18:51]} 11. f3 {[%clk 1:06:40]}  Nxg3 {[%clk 1:15:55]} 12. hxg3 {[%clk 1:07:00]}  Qd6 {[%clk 1:15:01]}
13. Kf2 {[%clk 1:03:18]}  h4 {[%clk 1:01:45]} 14. gxh4 {[%clk 1:00:10]}  gxh4 {[%clk 1:02:08]} 15. Ne2 {[%clk 0:59:11]}  Nc6 {[%clk 1:00:23]}
16. Nf4 {[%clk 0:56:51]}  Ne7 {[%clk 0:58:53]} 17. c4 {[%clk 0:38:53]}  c6 {[%clk 0:57:23]} 18. Qc2 {[%clk 0:36:29]}  Ng6 {[%clk 0:48:48]}
19. cxd5 {[%clk 0:25:59]}  Nxf4 {[%clk 0:44:00]} 20. Qe4+ {[%clk 0:25:16]}  Ne6 {[%clk 0:41:10]} 21. dxe6 {[%clk 0:23:29]}  Qg3+ {[%clk 0:40:11]}
22. Kg1 {[%clk 0:19:18]}  Bxe6 {[%clk 0:39:07]} 23. Rh3 {[%clk 0:18:48]}  Qg5 {[%clk 0:38:41]} 24. Bc4 {[%clk 0:07:18]}  Rh6 {[%clk 0:31:09]}
25. Re1 {[%clk 0:12:57]}  Qa5 {[%clk 0:26:01]} 26. Re2 {[%clk 0:09:09]}  O-O-O {[%clk 0:21:15]} 27. Bxe6+ {[%clk 0:08:12]}  Rxe6 {[%clk 0:21:40]}
28. Qd3 {[%clk 0:07:46]}  Qg5 {[%clk 0:19:31]} 29. f4 {[%clk 0:06:51]}  Qg4 {[%clk 0:18:42]} 30. Rb2 {[%clk 0:06:08]}  Rg6 {[%clk 0:16:03]}
31. Kh2 {[%clk 0:05:39]}  f5 {[%clk 0:12:20]} 32. Rc2 {[%clk 0:03:51]}  Rdg8 {[%clk 0:09:53]} 33. Qd2 {[%clk 0:03:11]}  Kb8 {[%clk 0:08:59]}
34. Kh1 {[%clk 0:02:34]}  Qh5 {[%clk 0:07:32]} 35. Qe2 {[%clk 0:01:42]}  Qh6 {[%clk 0:06:16]} 36. Qd3 {[%clk 0:01:21]}  Qh5 {[%clk 0:06:04]}
37. Qe2 {[%clk 0:01:01]}  Qh7 {[%clk 0:06:31]} 38. Rb2 {[%clk 0:00:51]}  Rg3 {[%clk 0:06:34]} 39. Qf1 {[%clk 0:00:48]}  Rxh3+ {[%clk 0:05:02]}
40. gxh3 {[%clk 0:01:13]}  Rg3 {[%clk 0:05:12]} 41. Kh2 {[%clk 0:01:14]}  Qe7 {[%clk 0:02:58]} 42. Qa6 {[%clk 0:28:55]}  Rxe3 {[%clk 0:26:26]}
43. Qxc6 {[%clk 0:26:19]}  Re2+ {[%clk 0:26:37]} 44. Rxe2 {[%clk 0:26:43]}  Qxe2+ {[%clk 0:27:05]} 45. Qg2 {[%clk 0:27:04]}  Qxg2+ {[%clk 0:27:27]}
46. Kxg2 {[%clk 0:27:31]}  Kc7 {[%clk 0:27:51]} 47. Kf3 {[%clk 0:27:35]}  Kc6 {[%clk 0:28:10]} 48. Ke3 {[%clk 0:27:57]}  Kd5 {[%clk 0:28:30]}
49. Kd3 {[%clk 0:28:22]}  b5 {[%clk 0:28:56]} 50. Kc3 {[%clk 0:28:37]}  a5 {[%clk 0:29:15]} 51. Kd3 {[%clk 0:28:57]}  b4 {[%clk 0:28:44]}
52. axb4 {[%clk 0:29:16]}  axb4 {[%clk 0:29:08]} 0-1

[Event "2026 European Womens Championship"]
[Site "Batumi, GE"]
[Date "2026.05.27"]
[Round "3"]
[White "Ibrahimova, Sabina"]
[Black "Venskaya, Nika"]
[Result "1-0"]
[Board "53"]
[TimeControl "5400+30"]
[WhiteFideId "13403893"]
[BlackFideId "13523503"]
[WhiteElo "2205"]
[BlackElo "1937"]
[WhiteTitle "WIM"]
[BlackTitle "WCM"]
[WhiteClock "0:00:57"]
[BlackClock "0:03:16"]
[Variant "Standard"]

1. Nf3 {[%clk 1:27:35]}  c5 {[%clk 1:30:50]} 2. c4 {[%clk 1:27:48]}  g6 {[%clk 1:30:01]} 3. e4 {[%clk 1:25:53]}  Nc6 {[%clk 1:29:44]}
4. d4 {[%clk 1:25:46]}  cxd4 {[%clk 1:30:09]} 5. Nxd4 {[%clk 1:26:10]}  Nf6 {[%clk 1:30:29]} 6. Nc3 {[%clk 1:26:17]}  Nxd4 {[%clk 1:30:37]}
7. Qxd4 {[%clk 1:26:23]}  d6 {[%clk 1:31:05]} 8. Be2 {[%clk 1:24:03]}  Bg7 {[%clk 1:31:21]} 9. O-O {[%clk 1:23:20]}  O-O {[%clk 1:31:38]}
10. Qd3 {[%clk 1:23:13]}  a5 {[%clk 1:31:54]} 11. Be3 {[%clk 1:21:29]}  a4 {[%clk 1:32:19]} 12. Bd4 {[%clk 1:21:17]}  Be6 {[%clk 1:29:31]}
13. f4 {[%clk 1:13:51]}  Qa5 {[%clk 1:24:53]} 14. Rae1 {[%clk 1:07:45]}  Rac8 {[%clk 1:07:51]} 15. b3 {[%clk 1:06:28]}  Bd7 {[%clk 1:01:17]}
16. e5 {[%clk 0:54:11]}  Bf5 {[%clk 0:58:11]} 17. Qe3 {[%clk 0:44:05]}  dxe5 {[%clk 0:56:05]} 18. fxe5 {[%clk 0:43:20]}  Nd7 {[%clk 0:55:36]}
19. Nd5 {[%clk 0:40:42]}  Rfe8 {[%clk 0:54:37]} 20. b4 {[%clk 0:29:09]}  Qd8 {[%clk 0:50:00]} 21. Rd1 {[%clk 0:29:14]}  Be6 {[%clk 0:43:36]}
22. Ba1 {[%clk 0:08:45]}  Bxd5 {[%clk 0:34:24]} 23. cxd5 {[%clk 0:08:38]}  f6 {[%clk 0:31:09]} 24. e6 {[%clk 0:01:41]}  Ne5 {[%clk 0:29:21]}
25. Bb5 {[%clk 0:00:58]}  Rf8 {[%clk 0:29:03]} 26. Bxa4 {[%clk 0:01:00]}  Nc4 {[%clk 0:28:48]} 27. Qd4 {[%clk 0:00:52]}  Nd6 {[%clk 0:28:53]}
28. Bb3 {[%clk 0:01:11]}  Kh8 {[%clk 0:28:06]} 29. Kh1 {[%clk 0:01:04]}  Qc7 {[%clk 0:25:48]} 30. Rf3 {[%clk 0:01:09]}  Nf5 {[%clk 0:23:40]}
31. Qf2 {[%clk 0:01:16]}  b5 {[%clk 0:11:54]} 32. Bb2 {[%clk 0:01:29]}  Rg8 {[%clk 0:11:28]} 33. Rc3 {[%clk 0:01:14]}  Qd6 {[%clk 0:11:27]}
34. Rc5 {[%clk 0:01:25]}  Nh6 {[%clk 0:11:38]} 35. Bd4 {[%clk 0:00:56]}  Rb8 {[%clk 0:11:09]} 36. Rc6 {[%clk 0:00:56]}  Ng4 {[%clk 0:07:29]}
37. Qh4 {[%clk 0:01:14]}  Qf4 {[%clk 0:07:48]} 38. Rc3 {[%clk 0:00:50]}  f5 {[%clk 0:07:42]} 39. Rf3 {[%clk 0:00:47]}  Qe4 {[%clk 0:07:15]}
40. Rh3 {[%clk 0:00:54]}  h5 {[%clk 0:03:16]} 41. Qxh5+ {[%clk 0:00:57]} 1-0

[Event "2026 European Womens Championship"]
[Site "Batumi, GE"]
[Date "2026.05.27"]
[Round "3"]
[White "Koghuashvili, Tekla"]
[Black "Calzetta Ruiz, Monica"]
[Result "1/2-1/2"]
[Board "54"]
[TimeControl "5400+30"]
[WhiteFideId "13621564"]
[BlackFideId "2204185"]
[WhiteElo "1921"]
[BlackElo "2199"]
[BlackTitle "WGM"]
[WhiteClock "0:46:31"]
[BlackClock "0:14:39"]
[Variant "Standard"]

1. e4 {[%clk 1:30:59]}  c5 {[%clk 1:30:52]} 2. c3 {[%clk 1:31:25]}  Nf6 {[%clk 1:31:00]} 3. e5 {[%clk 1:31:49]}  Nd5 {[%clk 1:31:25]}
4. Nf3 {[%clk 1:32:14]}  Nc6 {[%clk 1:31:39]} 5. Bc4 {[%clk 1:32:28]}  Nb6 {[%clk 1:32:00]} 6. Bb3 {[%clk 1:32:52]}  c4 {[%clk 1:32:09]}
7. Bc2 {[%clk 1:33:16]}  d6 {[%clk 1:32:17]} 8. exd6 {[%clk 1:33:36]}  Qxd6 {[%clk 1:32:42]} 9. h3 {[%clk 1:32:51]}  Qe6+ {[%clk 1:27:13]}
10. Qe2 {[%clk 1:32:57]}  Qxe2+ {[%clk 1:24:54]} 11. Kxe2 {[%clk 1:33:21]}  e5 {[%clk 1:25:20]} 12. Re1 {[%clk 1:32:37]}  Bd6 {[%clk 1:20:35]}
13. Kf1 {[%clk 1:31:59]}  O-O {[%clk 1:20:26]} 14. b3 {[%clk 1:31:30]}  f5 {[%clk 1:06:41]} 15. Na3 {[%clk 1:20:18]}  e4 {[%clk 1:05:38]}
16. Nb5 {[%clk 1:16:47]}  Bc5 {[%clk 0:47:41]} 17. Nfd4 {[%clk 1:14:33]}  Bxd4 {[%clk 0:47:18]} 18. Nxd4 {[%clk 1:14:23]}  Nxd4 {[%clk 0:47:41]}
19. cxd4 {[%clk 1:14:49]}  Be6 {[%clk 0:47:58]} 20. f3 {[%clk 1:12:11]}  cxb3 {[%clk 0:37:42]} 21. axb3 {[%clk 1:11:39]}  Rac8 {[%clk 0:33:19]}
22. Bd1 {[%clk 1:09:45]}  Nd5 {[%clk 0:28:37]} 23. Ba3 {[%clk 1:07:54]}  Rf6 {[%clk 0:26:58]} 24. Kg1 {[%clk 1:05:05]}  Nf4 {[%clk 0:19:30]}
25. Kh2 {[%clk 0:54:07]}  Rg6 {[%clk 0:17:40]} 26. g3 {[%clk 0:51:30]}  Nd3 {[%clk 0:17:27]} 27. Re3 {[%clk 0:50:41]}  Bd5 {[%clk 0:07:18]}
28. fxe4 {[%clk 0:45:40]}  fxe4 {[%clk 0:06:40]} 29. Be7 {[%clk 0:44:40]}  a6 {[%clk 0:03:43]} 30. Ra5 {[%clk 0:43:25]}  b5 {[%clk 0:04:11]}
31. Ra1 {[%clk 0:41:12]}  Rgc6 {[%clk 0:04:23]} 32. Be2 {[%clk 0:33:41]}  Nc1 {[%clk 0:04:33]} 33. Bd1 {[%clk 0:33:51]}  R8c7 {[%clk 0:04:29]}
34. Bc5 {[%clk 0:32:35]}  Nd3 {[%clk 0:04:56]} 35. b4 {[%clk 0:32:33]}  Rf7 {[%clk 0:05:23]} 36. Be2 {[%clk 0:32:05]}  g5 {[%clk 0:01:40]}
37. Rf1 {[%clk 0:20:41]}  Rxf1 {[%clk 0:01:38]} 38. Bxf1 {[%clk 0:21:07]}  Rf6 {[%clk 0:01:30]} 39. Bxd3 {[%clk 0:17:43]}  exd3 {[%clk 0:01:57]}
40. Rxd3 {[%clk 0:17:56]}  Rf1 {[%clk 0:00:42]} 41. g4 {[%clk 0:18:02]}  Rf2+ {[%clk 0:00:43]} 42. Kg1 {[%clk 0:18:23]}  Rg2+ {[%clk 0:26:45]}
43. Kf1 {[%clk 0:48:46]}  h6 {[%clk 0:22:11]} 44. Ra3 {[%clk 0:47:51]}  Rxd2 {[%clk 0:19:32]} 45. Rxa6 {[%clk 0:48:12]}  Kh7 {[%clk 0:14:39]}
46. Ra7+ {[%clk 0:46:31]} 1/2-1/2

[Event "2026 European Womens Championship"]
[Site "Batumi, GE"]
[Date "2026.05.27"]
[Round "3"]
[White "Ashotia, Barbare"]
[Black "Olde, Margareth"]
[Result "0-1"]
[Board "55"]
[TimeControl "5400+30"]
[WhiteFideId "13625187"]
[BlackFideId "4503082"]
[WhiteElo "1913"]
[BlackElo "2194"]
[BlackTitle "WIM"]
[WhiteClock "0:00:54"]
[BlackClock "0:01:15"]
[Variant "Standard"]

1. e4 {[%clk 1:30:51]}  e5 {[%clk 1:30:48]} 2. Nf3 {[%clk 1:31:08]}  Nc6 {[%clk 1:31:10]} 3. Nc3 {[%clk 1:31:26]}  Nf6 {[%clk 1:31:01]}
4. Nd5 {[%clk 1:31:14]}  Bd6 {[%clk 1:12:08]} 5. d4 {[%clk 1:26:14]}  Nxd5 {[%clk 1:09:39]} 6. exd5 {[%clk 1:26:11]}  Nxd4 {[%clk 1:09:20]}
7. Nxd4 {[%clk 1:26:05]}  exd4 {[%clk 1:09:44]} 8. Qxd4 {[%clk 1:24:58]}  O-O {[%clk 1:06:52]} 9. Be3 {[%clk 1:21:36]}  Re8 {[%clk 1:00:57]}
10. O-O-O {[%clk 1:18:31]}  b6 {[%clk 0:58:01]} 11. Bd3 {[%clk 1:15:15]}  Be5 {[%clk 0:49:48]} 12. Qa4 {[%clk 1:07:05]}  Bb7 {[%clk 0:44:06]}
13. h4 {[%clk 1:03:22]}  h6 {[%clk 0:41:42]} 14. Qb3 {[%clk 0:43:58]}  a5 {[%clk 0:36:25]} 15. a4 {[%clk 0:42:10]}  Qe7 {[%clk 0:31:06]}
16. c4 {[%clk 0:31:51]}  Qf6 {[%clk 0:25:54]} 17. Rh3 {[%clk 0:28:16]}  Bf4 {[%clk 0:24:59]} 18. Rf1 {[%clk 0:24:50]}  Re7 {[%clk 0:21:14]}
19. g4 {[%clk 0:20:46]}  Rae8 {[%clk 0:20:50]} 20. Kb1 {[%clk 0:17:38]}  Qd6 {[%clk 0:16:55]} 21. Bc2 {[%clk 0:16:58]}  Ba6 {[%clk 0:11:41]}
22. Qd3 {[%clk 0:12:01]}  Re4 {[%clk 0:11:27]} 23. b3 {[%clk 0:10:49]}  Qb4 {[%clk 0:06:08]} 24. Ka2 {[%clk 0:07:07]}  Rxc4 {[%clk 0:04:04]}
25. Qh7+ {[%clk 0:04:07]}  Kf8 {[%clk 0:04:31]} 26. Bxf4 {[%clk 0:01:37]}  Rxc2+ {[%clk 0:03:47]} 27. Qxc2 {[%clk 0:00:33]}  Re2 {[%clk 0:03:16]}
28. Qxe2 {[%clk 0:00:43]}  Bxe2 {[%clk 0:03:43]} 29. Rc1 {[%clk 0:00:35]}  Qxf4 {[%clk 0:04:06]} 30. Rc2 {[%clk 0:00:43]}  Bxg4 {[%clk 0:04:01]}
31. Rhc3 {[%clk 0:00:39]}  Bd1 {[%clk 0:02:54]} 32. Rb2 {[%clk 0:00:52]}  Qd4 {[%clk 0:02:19]} 33. Rxc7 {[%clk 0:00:59]}  Qxd5 {[%clk 0:02:42]}
34. Rc4 {[%clk 0:01:08]}  g6 {[%clk 0:02:23]} 35. Rc3 {[%clk 0:01:03]}  b5 {[%clk 0:02:02]} 36. axb5 {[%clk 0:00:43]}  a4 {[%clk 0:02:01]}
37. Rc8+ {[%clk 0:00:45]}  Kg7 {[%clk 0:02:24]} 38. Rc1 {[%clk 0:00:40]}  Bxb3+ {[%clk 0:01:57]} 39. Ka1 {[%clk 0:00:54]}  Qxb5 {[%clk 0:01:15]} 0-1

[Event "2026 European Womens Championship"]
[Site "Batumi, GE"]
[Date "2026.05.27"]
[Round "3"]
[White "Nahapetyan, Ani"]
[Black "Peycheva, Gergana"]
[Result "0-1"]
[Board "57"]
[TimeControl "5400+30"]
[WhiteFideId "13317776"]
[BlackFideId "2916711"]
[WhiteElo "1827"]
[BlackElo "2186"]
[BlackTitle "FM"]
[WhiteClock "0:28:31"]
[BlackClock "0:23:10"]
[Variant "Standard"]

1. e4 {[%clk 1:30:55]}  c5 {[%clk 1:30:11]} 2. Nf3 {[%clk 1:31:21]}  Nc6 {[%clk 1:30:16]} 3. d4 {[%clk 1:31:44]}  cxd4 {[%clk 1:30:25]}
4. Nxd4 {[%clk 1:32:04]}  g6 {[%clk 1:30:33]} 5. c4 {[%clk 1:32:19]}  Nf6 {[%clk 1:29:56]} 6. Nc3 {[%clk 1:32:39]}  d6 {[%clk 1:29:16]}
7. Be2 {[%clk 1:32:33]}  Nxd4 {[%clk 1:28:48]} 8. Qxd4 {[%clk 1:32:54]}  Bg7 {[%clk 1:28:43]} 9. Be3 {[%clk 1:32:08]}  O-O {[%clk 1:26:42]}
10. Qd2 {[%clk 1:30:48]}  a5 {[%clk 1:24:14]} 11. a4 {[%clk 1:30:53]}  Be6 {[%clk 1:17:15]} 12. f3 {[%clk 1:20:32]}  Rc8 {[%clk 1:15:26]}
13. Nd5 {[%clk 1:19:43]}  Bxd5 {[%clk 1:02:22]} 14. cxd5 {[%clk 1:08:32]}  Nd7 {[%clk 1:00:47]} 15. O-O {[%clk 1:04:38]}  Nc5 {[%clk 0:58:08]}
16. Bxc5 {[%clk 1:00:42]}  Rxc5 {[%clk 0:57:27]} 17. Rac1 {[%clk 0:54:35]}  Qb6 {[%clk 0:44:08]} 18. Rxc5 {[%clk 0:47:04]}  Qxc5+ {[%clk 0:43:45]}
19. Kh1 {[%clk 0:47:30]}  Rc8 {[%clk 0:41:20]} 20. b3 {[%clk 0:46:47]}  Bc3 {[%clk 0:23:19]} 21. Qd1 {[%clk 0:44:45]}  Qe3 {[%clk 0:21:06]}
22. Bc4 {[%clk 0:42:29]}  Be5 {[%clk 0:19:22]} 23. f4 {[%clk 0:39:25]}  Bg7 {[%clk 0:19:33]} 24. Qf3 {[%clk 0:36:34]}  Qd4 {[%clk 0:18:13]}
25. Re1 {[%clk 0:30:57]}  Qd2 {[%clk 0:13:01]} 26. Qe3 {[%clk 0:28:33]}  Qxe3 {[%clk 0:09:29]} 27. Rxe3 {[%clk 0:28:52]}  b5 {[%clk 0:08:10]}
28. axb5 {[%clk 0:21:09]}  a4 {[%clk 0:08:33]} 29. b6 {[%clk 0:15:46]}  a3 {[%clk 0:07:13]} 30. e5 {[%clk 0:14:32]}  dxe5 {[%clk 0:06:15]}
31. b7 {[%clk 0:13:03]}  Rb8 {[%clk 0:05:47]} 32. b4 {[%clk 0:11:56]}  Rxb7 {[%clk 0:05:53]} 33. Rxa3 {[%clk 0:09:51]}  Rxb4 {[%clk 0:06:17]}
34. Ra8+ {[%clk 0:10:16]}  Bf8 {[%clk 0:06:40]} 35. Ba2 {[%clk 0:10:37]}  Rxf4 {[%clk 0:03:42]} 36. g3 {[%clk 0:10:52]}  Rf6 {[%clk 0:03:43]}
37. Ra3 {[%clk 0:10:02]}  Rd6 {[%clk 0:02:28]} 38. Rc3 {[%clk 0:07:19]}  f5 {[%clk 0:01:53]} 39. Kg2 {[%clk 0:04:54]}  Kf7 {[%clk 0:01:32]}
40. Rf3 {[%clk 0:04:01]}  Kf6 {[%clk 0:00:47]} 41. g4 {[%clk 0:03:49]}  e4 {[%clk 0:00:50]} 42. Rh3 {[%clk 0:01:51]}  h6 {[%clk 0:29:44]}
43. gxf5 {[%clk 0:29:36]}  gxf5 {[%clk 0:28:35]} 44. Rg3 {[%clk 0:28:29]}  Ra6 {[%clk 0:25:00]} 45. Bb3 {[%clk 0:28:41]}  Ra3 {[%clk 0:24:55]}
46. Bc4 {[%clk 0:28:34]}  Rxg3+ {[%clk 0:24:12]} 47. hxg3 {[%clk 0:28:46]}  Ke5 {[%clk 0:24:33]} 48. Kf2 {[%clk 0:28:34]}  Kd4 {[%clk 0:24:54]}
49. Ba2 {[%clk 0:28:31]}  Bg7 {[%clk 0:23:10]} 0-1